Cogmind - Beta 16 @@@ ROGUE MODE // 2025.11.26 @ 17:18:49 Player: Skysub Result: Self-destructed Performance ------------- Evolutions (1) 500 Regions Visited (2) 400 Robots Destroyed (1) 5 Value Destroyed (5) 5 Prototype IDs (0) 0 Alien Tech Used (0) 0 Bonus (0) 0 TOTAL SCORE: 910 Bonus ------- None Cogmind --------- Core Integrity 47/400 Matter 294/300 Energy 100/100 System Corruption 3% Temperature Cool (0) Movement Core (50) Location -9/Materials Parts ------- > --- POWER (1) -------- (None) > --- PROPULSION (3) --- (None) > --- UTILITY (3) ------ (None) > --- WEAPON (2) ------- (None) > --- INVENTORY (5) ---- Light Ion Engine Light Ion Engine Light Armor Plating Light Armor Plating Maul Peak State ------------ > --- POWER ------------ (None) > --- PROPULSION ------- (None) > --- UTILITY ---------- Reaction Control System Reaction Control System > --- WEAPON ----------- (None) > --- INVENTORY -------- Light Ion Engine Light Ion Engine Light Armor Plating Light Armor Plating Maul [Rating: 6] Favorites ----------- Power None Propulsion None Utility Terrain Scan Processor Device Reaction Control System Processor Terrain Scan Processor Protection Light Armor Plating Weapon None Build | -11 -10 -9 ------- Run | Yrd Mat Mat Slots Evolved 2 | . . 2 Power . | . . . Propulsion 1 | . . 1 Utility 1 | . . 1 Weapon . | . . . Parts Attached 5 | . 2 3 Power . | . . . Engine . | . . . Core . | . . . Reactor . | . . . Propulsion . | . . . Treads . | . . . Leg . | . . . Wheel . | . . . Hover . | . . . Flight . | . . . Utility 5 | . 2 3 Device 3 | . 1 2 Storage . | . . . Processor 1 | . 1 . Hackware . | . . . Protection 1 | . . 1 Artifact . | . . . Weapon . | . . . Energy Gun . | . . . Energy Cannon . | . . . Ballistic Gun . | . . . Ballistic Cannon . | . . . Launcher . | . . . Special Weapon . | . . . Impact Weapon . | . . . Slashing Weapon . | . . . Piercing Weapon . | . . . Special Melee Weapon . | . . . Unidentified Prototypes . | . . . Parts Lost 3 | . 1 2 Power . | . . . Propulsion . | . . . Utility 3 | . 1 2 Weapon . | . . . Highest Loss Streak 2 | . 1 2 To Critical Strikes . | . . . Average Backups 2 | 1 2 3 Power 1 | 1 2 2 Propulsion . | . . . Utility . | . . 1 Weapon . | . . . Tool/Special . | . . . Unused Backups 4 | . . 4 Power 2 | . . 2 Propulsion . | . . . Utility 1 | . . 1 Weapon 1 | . . 1 Tool/Special . | . . . Average Slot Usage (%) 9 | . 6 13 Device 4 | . 1 6 Processor 4 | . 4 5 Protection 1 | . . 2 Peak Build Rating 6 | . 3 6 Average Rating 1 | . . 2 On Entrance . | . . 2 Avg Prop Armor Cover (%) . | . . . Naked Turns 80 | . 48 32 Heaviest Build 3 | . 1 3 Greatest Support 3 | 3 3 3 Greatest Overweight (x) . | . . . Average Overweight (x) . | . . . Largest Inventory Capacity 5 | 5 5 5 Average Capacity 5 | 5 5 5 Most Carried 5 | 2 2 5 Average Carried 3 | 1 2 4 Final Capacity 5 | 5 5 5 Final Carried 5 | 2 2 5 Class Distribution -------------------- 100% | Mutant Dominant Class ---------------- Mutant | -10/Materials Mutant | -9/Materials Resources | -11 -10 -9 ----------- Run | Yrd Mat Mat Matter Collected 202 | 173 29 . Remotely . | . . . Salvage Created 29 | . 29 . Parts 3 | . 3 . Haulers Intercepted . | . . . Recyclers Shooed . | . . . Parts Field Recycled . | . . . Retrieved Matter . | . . . Parts Self-Destructed . | . . . Prevented . | . . . Parts Restored . | . . . Kills | -11 -10 -9 ------- Run | Yrd Mat Mat Combat Hostiles Destroyed . | . . . Classes Destroyed 1 | . 1 . Builder 1 | . 1 . Best Kill Streak 1 | . 1 . Combat Bots Only . | . . . Max Kills in Single Turn 1 | . 1 . Gunslinging . | . . . Exploded . | . . . Melee . | . . . Uniques/NPCs Destroyed . | . . . Combat | -11 -10 -9 -------- Run | Yrd Mat Mat Hostile Shots Fired 69 | . 18 51 Missed 27 | . 9 18 Hits 42 | . 9 33 Projectile 42 | . 9 33 Critical Strikes 2 | . . 2 Damage Taken 600 | . 130 470 Core 465 | . 112 353 Absorbed by Shields . | . . . Core Remaining (%) 77 | 100 55 . Volleys Fired . | . . . Largest . | . . . Hottest . | . . . Shots Fired . | . . . Gun . | . . . Cannon . | . . . Launcher . | . . . Special . | . . . Kinetic . | . . . Thermal . | . . . Explosive . | . . . Electromagnetic . | . . . Robot Hit Streak . | . . . Robot Miss Streak . | . . . Penetration Max . | . . . Secondary Targets . | . . . Shots Hit Robots . | . . . Core Hits 4 | . 2 2 Critical Kills . | . . . Critical Parts Destroyed . | . . . Critical Strikes . | . . . Melee Attacks . | . . . Impact . | . . . Slashing . | . . . Piercing . | . . . Sneak Attacks . | . . . Combat Hostiles . | . . . Follow-up Attacks . | . . . Damage Inflicted 82 | . 49 33 Guns . | . . . Cannons . | . . . Explosions . | . . . Melee . | . . . Ramming 82 | . 49 33 Kinetic . | . . . Thermal . | . . . Explosive . | . . . Electromagnetic . | . . . Impact . | . . . Slashing . | . . . Piercing . | . . . Highest Corruption 5 | . 5 3 Average Corruption 4 | . 5 3 Corruption Purged . | . . . Corruption Blocked . | . . . Effects 1 | . 1 . Data Loss (minor) 1 | . 1 . Overload Shots . | . . . Overflow Damage . | . . . Projectiles . | . . . Explosions . | . . . Melee . | . . . Knockbacks 1 | . 1 . Impact 1 | . 1 . Kinetic . | . . . Secondary . | . . . Self-Inflicted Damage 39 | . 23 16 Shots . | . . . Rammed 12 | . 7 5 Targets Rammed 12 | . 7 5 Kicked . | . . . Crushed . | . . . Highest Temperature 14 | . . 14 Average Temperature 8 | . . 8 Received Heat Transfer 282 | . 60 222 Siege Activations . | . . . Martial Activations . | . . . Shielding Activations . | . . . Robots Disrupted . | . . . Combat Hostiles . | . . . Robots Corrupted . | . . . Combat Hostiles . | . . . Parts Fried . | . . . Impact Corruptions . | . . . Robots Melted . | . . . Combat Hostiles . | . . . Parts Melted . | . . . Heat Transferred . | . . . Parts Sabotaged . | . . . Parts Stolen . | . . . Parts Stripped . | . . . Power Chain Reactions . | . . . Alert | -11 -10 -9 ------- Run | Yrd Mat Mat Maximum Alert Level . | . . . Low Security (%) 100 | 100 100 100 Level 1 . | . . . Level 2 . | . . . Level 3 . | . . . Level 4 . | . . . Level 5 . | . . . High Security . | . . . Max Security . | . . . Peak Influence 15 | . 14 15 Initial . | . . . Average 2 | . 4 2 Influence Increases 51 | . 31 20 Destroy 0b10 Robot/NC 5 | . 5 . Successful Hack 31 | . 26 5 Lose Combat Pursuer 15 | . . 15 Influence Decreases 51 | . 31 20 Time Decay 36 | . 21 15 Lost Part 15 | . 10 5 Squads Dispatched 3 | . 1 2 Investigation 3 | . 1 2 Extermination . | . . . Reinforcement . | . . . Assault . | . . . Garrison . | . . . Intercept . | . . . Searches Triggered . | . . . Construction Impeded . | . . . Haulers Reinforced . | . . . Active Scanning Responses . | . . . Cargo Convoy Interrupts . | . . . Stealth | -11 -10 -9 --------- Run | Yrd Mat Mat Distress Signals . | . . . Communications Jammed . | . . . Distress Signals . | . . . Times Spotted 14 | . 5 9 Peak Tracking Total 9 | . 5 9 Tactical Retreats 1 | . . 1 Traps | -11 -10 -9 ------- Run | Yrd Mat Mat Traps Triggered 1 | . . 1 Indirectly . | . . . Trap Hack Attempts . | . . . Triggered . | . . . Disarmed . | . . . Reprogrammed . | . . . Reused . | . . . Traps Extracted . | . . . Installed . | . . . Triggered . | . . . Machines | -11 -10 -9 ---------- Run | Yrd Mat Mat Machines Disabled . | . . . Max in Single Turn . | . . . Machines Repaired . | . . . Machines Dismantled . | . . . Machines Sabotaged . | . . . Overloaded Fab Kills . | . . . Hacking | -11 -10 -9 --------- Run | Yrd Mat Mat Machines Accessed 5 | . 2 3 Terminals 5 | . 2 3 Fabricators . | . . . Repair Stations . | . . . Recycling Units . | . . . Scanalyzers . | . . . Garrison Access . | . . . Total Hacks 14 | . 6 8 Successful 4 | . 3 1 Failed 10 | . 3 7 Catastrophic 4 | . 1 3 Database Lockouts . | . . . Manual 12 | . 6 6 Terminals 14 | . 6 8 Fabricators . | . . . Repair Stations . | . . . Recycling Units . | . . . Scanalyzers . | . . . Garrison Access . | . . . Terminal Hacks 1 | . 1 . Level Access Points 1 | . 1 . Fabricator Hacks . | . . . Repair Station Hacks . | . . . Recycling Unit Hacks . | . . . Scanalyzer . | . . . Garrison Access Hacks . | . . . Unauthorized Hacks 3 | . 2 1 Terminals 3 | . 2 1 Botnet 3 | . 2 1 Fabricators . | . . . Repair Stations . | . . . Recycling Units . | . . . Scanalyzers . | . . . Garrison Access . | . . . Data Cores Recovered . | . . . Used . | . . . Hacking Detections 4 | . 1 3 Full Trace Events 4 | . 1 3 Feedback Events . | . . . Feedback Blocked . | . . . Robot Schematics Acquired . | . . . Robots Built . | . . . Authchips . | . . . Time . | . . . Total Robot Build Rating . | . . . Part Schematics Acquired . | . . . Parts Built . | . . . Authchips . | . . . Time . | . . . Total Part Build Rating . | . . . Part Studies Acquired . | . . . Parts Repaired . | . . . Time . | . . . Parts Recycled . | . . . Recycled Matter . | . . . Retrieved Matter . | . . . Retrieved Components . | . . . Parts Scanalyzed . | . . . Part Schematics Acquired . | . . . Parts Damaged . | . . . Bothacking | -11 -10 -9 ------------ Run | Yrd Mat Mat Used RIF Installer . | . . . Robots Hacked . | . . . Non-combat . | . . . Combat . | . . . Robot Hacks Applied . | . . . Relay Couplers Released . | . . . Fabnet Peak Effective % . | . . . Robots Rewired . | . . . Allies Hacked . | . . . Hacks Repelled . | . . . Allies | -11 -10 -9 -------- Run | Yrd Mat Mat Total Allies . | . . . Largest Group . | . . . Highest-Rated Group . | . . . Highest-Rated Ally . | . . . Total Orders . | . . . Ally Attacks . | . . . Total Damage . | . . . Kills . | . . . Allies Corrupted . | . . . Allies Melted . | . . . Intel | -11 -10 -9 ------- Run | Yrd Mat Mat Active Infowar (turns) 8 | . 8 . Terrain 8 | . 8 . Robot Analysis Total . | . . . Derelict Logs Recovered . | . . . Drone Launches . | . . . Drone Recoveries . | . . . Exploration | -11 -10 -9 ------------- Run | Yrd Mat Mat Turns Passed 195 | 16 80 99 Spaces Moved 339 | 28 139 172 Core 339 | 28 139 172 Treads . | . . . Legs . | . . . Wheels . | . . . Hover . | . . . Flight . | . . . Fastest Speed 50 | 50 50 50 Average Speed 50 | 50 50 50 Slowest Speed 50 | 50 50 50 Overloaded Moves . | . . . Propulsion Burnouts . | . . . Robots Hopped . | . . . Potential Cave-ins . | . . . Cave-ins Triggered . | . . . Exploration Rate (%) 17 | 3 31 17 Regions Visited 2 Branch Regions . Pre-discovered Areas . | . . . Known Exits Taken 1 | . 1 . Unknown Exits Taken 1 | 1 . . Scrap Searched . | . . . Spaces Dug . | . . . Terrain Destroyed . | . . . Melee . | . . . Projectile . | . . . AOE . | . . . Terrain Rammed . | . . . Walls Destroyed . | . . . Machines Disabled . | . . . Actions | -11 -10 -9 --------- Run | Yrd Mat Mat Total 359 | 29 147 183 Wait . | . . . Move 337 | 27 138 172 Hop . | . . . Pick Up 4 | 2 . 2 Fast Attach 5 | . 2 3 Attach . | . . . Detach 1 | . . 1 Swap . | . . . Drop . | . . . Fire . | . . . Melee . | . . . Ram 12 | . 7 5 Kick . | . . . Crush . | . . . Escape Stasis . | . . . Rewire . | . . . Trap . | . . . Miscellaneous . | . . . Route ------- -11/Scrapyard -10/Materials (discovered 3 exits: *Mat x3) -9/Materials History --------- Turn | Location | Event 7 | -11/Scrapyard | Discovered new exit (range 14) 17 | -11/Scrapyard | Entered Materials 56 | -10/Materials | Identified exit to Materials 97 | -10/Materials | Entered another Materials area 97 | -9/Materials | Evolved 2 slots: Propulsion x1, Utility x1 147 | -9/Materials | Core integrity fell below 50% 189 | -9/Materials | Core integrity fell below 20% 196 | -9/Materials | Self-destructed Last Messages --------------- 00131_ Massive razor-sharp blades shoot up from within the floor. 00131_ Terrain Scan Processor severed. 00132_ Slammed into G-34 Mercenary. 00136_ Acquired Maul. 00139_ Slammed into G-47 Trooper. 00144_ Connecting with Terminal... >>Trojan(Botnet) Trojan loaded successfully. Testing... Terminal linked with 0 systems. Awaiting botnet instructions. 00155_ Acquired Reaction Control System. 00176_ Critical hit (Burn: +37). 00177_ U-05 Engineer lays Concrete. 00183_ Reaction Control System destroyed. 00185_ K-01 Serf collects debris. 00188_ Slammed into U-05 Engineer. 00188_ Reaction Control System destroyed. 00188_ System corrupted by crushing effect (+3). 00188_ Destabilizing: Core damaged (-20). Map ----- +----------------------------------------------------+ | ?????????????????????????????# ################ | | ?????????????????????????????# #??????????????? | | ???????????????????###??????## ##?????????????? | | ???????????????##+## ##### #?????????????? | | ??????????????# #?????????????? | | ??????????????# T #?????????????? | | ????????????????#+## ##### #?????????????? | | ???????????????????########### #######????????? | | ????????????????????# # # #????????? | | ????????????????????# + # !!! #????????? | | ????????????????????# # # !! #????????? | | ????????????????????# """ # /%!! #????????? | | ????????????????????# """""?# # #????????? | | ???????####???###???#??"""""?# # #????????? | | ???????# #??????""""??# # """ #????????? | | ???????# """ #?????? """??# # """ #????????? | | ???????# """ #????????????# # """ #????????? | | ???????# """ #??########### ## """ #????????? | | ???????# #??# """"" # ## #????????? | | ???????# #??#] ""T"" # ########????????? | | ???????# #??# # #???????????????? | | ???????# "T" #??# # #???????????????? | | ???????# #??#########+# #???????????????? | | ???????#####+#########???# #???????????????? | | ??????????# ##### #???????????????? | | ??????????# u @ #???????????????? | | ??????????# g ##### #???????????????? | | ??????????## ##### #???# #???????????????? | | ???????#####+##### #???###+###???????????????? | | ???????# # #???? #????????????????? | | ???????# # #?? #????????????????? | | ???????# """ # ## #????????????????? | | ???????# """ !! + ## #????????????????? | | ???????# """ !! # ##########????????????????? | | ???????# !!! + #?? #????????????????? | | ???????# # #? #????????????????? | | ???????# # #? #????????????????? | | ???????########### # #????????????????? | | ?????????????# # #????????????????? | | ?????????????# + #????????????????? | | ?????????????# # #????????????????? | | ?????????????##### # #????????????????? | | ?????????????????# #? #????????????????? | | ?????????????????# #?###+####????????????????? | | ?????????????????# #?????????????????????????? | | ?????????????????# ?????????????????????????? | | ?????????????????# ????????????????????????? | | ?????????????????# ???????????????????????? | | ?????????????????########??????????????????????? | | ???????????????????????????????????????????????? | +----------------------------------------------------+ Best States ------------- Heat Dissipation 28 Energy Generation 5 Energy Capacity 100 Matter Stores 300 Matter Capacity 300 Sight Range 16 Terrain Scan Range 14 Terrain Scan Density 85 Armor Coverage 150 Evasion (%) 58 Item Schematics ----------------- None Robot Schematics ------------------ None Fabricated ------------ Nothing Repaired ---------- Nothing Studied --------- None Alien Tech Used ----------------- None Achievements -------------- None Challenges ------------ None Game ------ Seed ZipFactorySource Manual? 0 Play Time 00:04:55 Cumulative 288.4 hours Start 2025.11.26 @ 17:15:32 End 2025.11.26 @ 17:18:49 Sessions 1 Manual Loads 0 Difficulty Rogue Special Mode None Game No. 324 Rogue 324 Adventurer 0 Explorer 0 Win Type - Total 17 Types 10/0/3/1/1/0/0/1/0/1 Lore% 77 Gallery% 75 Achievement% 57 Wizard Run 0 Options --------- Layout 1 ASCII 0 Keyboard 1 Movement Numpad Keybinds 0 Fullscreen 2 Font 32/SmallcapsGlow Map View 77x35 Zoom Use 0% Tactical HUD 1 Map Filters NONE Filters NONE Steam 1 RUN: 2d17e9cf-0378-4427-9cae-82cbe6e1debd